fUSD/lending_fUSD_20240404
["ID","MTS","AMOUNT","RATE_DAILY","PERIOD"]
[321492485,1712239884980,-537.3856293,0.00049589,120]
[321492486,1712239884990,-151.0,0.00049589,120]
[321492487,1712239884999,-500.0,0.00049589,120]
[321492488,1712239885009,-1466.61,0.00049589,120]
[321492489,1712239885019,-500.0,0.00049589,120]
[321492490,1712239885029,-544.77764903,0.00049589,120]
[321492491,1712239885038,-7448.15,0.00049589,120]
[321492492,1712239885048,-1891.65,0.00049589,120]
[321492493,1712239885057,-238.927733,0.00049589,30]
[321492494,1712239885067,-500.0,0.00049589,120]
[321492495,1712239885076,-3177.55,0.00049589,120]
[321492496,1712239885086,-5507.87,0.00049589,120]
[321492497,1712239885095,-500.0,0.00049589,120]
[321492498,1712239885106,-2530.8,0.00049589,120]
[321492499,1712239885116,-21865.33,0.00049589,120]
[321492500,1712239885125,-500.0,0.00049589,120]
[321492501,1712239885135,-509.61,0.00049589,120]
[321492502,1712239885145,-500.0,0.00049589,120]
[321492503,1712239885154,-500.0,0.00049589,120]
[321492504,1712239885163,-941.92,0.00049589,120]
[321492505,1712239885173,-1764.44,0.00049589,120]
[321492506,1712239885182,-500.0,0.00049589,120]
[321492507,1712239885192,-500.0,0.00049589,120]
[321492508,1712239885201,-20002.18,0.00049589,120]
[321492509,1712239885211,-10125.67,0.00049589,120]
[321492510,1712239885220,-3535.79,0.00049589,120]
[321492511,1712239885230,-500.0,0.00049589,120]
[321492512,1712239885240,-151.0,0.00049589,120]
[321492513,1712239885258,-201.325026,0.00049589,120]
[321492514,1712239885269,-500.0,0.00049589,120]
[321492515,1712239885279,-5076.66,0.00049589,120]
[321492516,1712239885288,-5089.55,0.00049589,120]
[321492517,1712239885297,-500.0,0.00049589,120]
[321492518,1712239885307,-915.54,0.00049589,120]
[321492519,1712239885317,-974.98,0.00049589,120]
[321492520,1712239885326,-2279.73,0.00049589,120]
[321492521,1712239885335,-201.325026,0.00049589,120]
[321492522,1712239885345,-500.0,0.00049589,120]
[321492523,1712239885355,-44292.34,0.00049589,120]
[321492524,1712239885364,-151.0,0.00049589,120]
[321492525,1712239885374,-4065.29,0.00049589,120]
[321492526,1712239885383,-643.71,0.00049589,120]
[321492527,1712239885393,-151.0,0.00049589,120]
[321492528,1712239885402,-500.0,0.00049589,120]
[321492529,1712239885412,-2898.84,0.00049589,120]
[321492530,1712239885422,-468.35157898,0.00049589,120]
[321492531,1712239885431,-890.34,0.00049589,120]
[321492532,1712239885440,-3262.94,0.00049589,120]
[321492533,1712239885450,-500.0,0.00049589,120]
[321492534,1712239885459,-3207.73,0.00049589,120]
[321492535,1712239885469,-758.089528,0.00049589,30]
[321492536,1712239885478,-513.9324843,0.00049589,120]
[321492537,1712239885488,-500.0,0.00049589,120]
[321492538,1712239885498,-590.99,0.00049589,120]
[321492539,1712239885508,-500.0,0.00049589,120]
[321492540,1712239885518,-8597.99,0.00049589,120]
[321492541,1712239885529,-500.0,0.00049589,120]
[321492542,1712239885539,-500.0,0.00049589,120]
[321492543,1712239885549,-2137.11,0.00049589,120]
[321492544,1712239885559,-2440.25,0.00049589,120]
[321492545,1712239885569,-500.0,0.00049589,120]
[321492546,1712239885580,-2088.88,0.00049589,120]
[321492547,1712239885590,-758.089528,0.00049589,30]
[321492548,1712239885600,-3836.77,0.00049589,120]
[321492549,1712239885609,-461.84453876,0.00049589,120]
[321492550,1712239885618,-1186.21,0.00049589,120]
[321492551,1712239885628,-151.0,0.00049589,120]
[321492552,1712239885638,-2466.43,0.00049589,120]
[321492553,1712239885648,-1906.61,0.00049589,120]
[321492554,1712239885658,-461.879019,0.00049589,120]
[321492555,1712239885673,-500.0,0.00049589,120]
[321492556,1712239885683,-500.0,0.00049589,120]
[321492557,1712239885692,-517.74054317,0.00049589,120]
[321492558,1712239885703,-151.0,0.00049589,120]
[321492559,1712239885713,-461.879019,0.00049589,120]
[321492560,1712239885724,-2455.03,0.00049589,120]
[321492561,1712239885734,-1216.2,0.00049589,120]
[321492562,1712239885743,-500.0,0.00049589,120]
[321492563,1712239885754,-941.13,0.00049589,120]
[321492564,1712239885765,-500.0,0.00049589,120]
[321492565,1712239885777,-2066.16,0.00049589,120]
[321492566,1712239885787,-500.0,0.00049589,120]
[321492567,1712239885797,-2102.45,0.00049589,120]
[321492568,1712239885806,-2773.94,0.00049589,120]
[321492569,1712239885816,-1344.39,0.00049589,120]
[321492570,1712239885826,-1340.73,0.00049589,120]
[321492571,1712239885836,-500.0,0.00049589,120]
[321492572,1712239885846,-151.0,0.00049589,120]
[321492573,1712239885856,-500.0,0.00049589,120]
[321492574,1712239885866,-151.0,0.00049589,120]
[321492575,1712239885876,-151.0,0.00049589,120]
[321492576,1712239885886,-500.0,0.00049589,120]
[321492577,1712239885895,-1798.22,0.00049589,7]
[321492578,1712239885905,-999.69,0.00049589,120]
[321492579,1712239885915,-3069.09,0.00049589,120]
[321492580,1712239885925,-1577.63,0.00049589,120]
[321492581,1712239885935,-3032.49,0.00049589,120]
[321492582,1712239885945,-1197.66,0.00049589,120]
[321492583,1712239885956,-513.35924589,0.00049589,120]
[321492584,1712239885967,-890.92,0.00049589,120]
[321492585,1712239885977,-151.0,0.00049589,120]
[321492586,1712239885987,-500.0,0.00049589,120]
[321492587,1712239885997,-151.0,0.00049589,120]
[321492588,1712239886006,-500.0,0.00049589,120]
[321492589,1712239886016,-500.0,0.00049589,120]
[321492590,1712239886029,-500.0,0.00049589,120]
[321492591,1712239886039,-193.26894352,0.00049615,30]
[321492592,1712239886049,-10035.9044936,0.0004968,18]
[321492593,1712239886059,-3662.65603,0.00049688,30]
[321492594,1712239886068,-157.040415,0.00049704,100]
[321492595,1712239886078,-1314.30067292,0.00049726,120]
[321492596,1712239886088,-152.26944911,0.00049757,30]
[321492597,1712239886098,-1708.3009947,0.00049766,2]
[321492598,1712239886107,-16534.8274295,0.00049766,2]
[321492599,1712239886117,-2678.7601196,0.00049766,2]
[321492600,1712239886127,-154.06850799,0.00049777,30]
[321492601,1712239886137,-504.5,0.00049799,30]
[321492602,1712239886147,-1990626.69584796,0.000498,30]
[321492603,1712239886157,-20777.19534431,0.000498,60]
[321492604,1712239886167,-13633.5393834,0.000498,30]
[321492605,1712239886177,-151.0,0.000498,120]
[321492606,1712239886388,-151.0,0.000498,30]
[321492607,1712239886399,-151.0,0.000498,120]
[321492608,1712239886409,-151.0,0.000498,120]
[321492609,1712239886418,-151.0,0.000498,120]
[321492610,1712239886427,-151.0,0.000498,120]
[321492611,1712239886437,-151.0,0.000498,120]
[321492612,1712239886446,-151.0,0.000498,120]
[321492613,1712239886455,-151.0,0.000498,120]
[321492614,1712239886465,-151.0,0.000498,120]
[321492615,1712239886474,-151.0,0.000498,120]
[321492616,1712239886483,-151.0,0.000498,120]
[321492617,1712239886492,-151.0,0.000498,120]
[321492618,1712239886501,-323.357105,0.000498,120]
[321492619,1712239886511,-323.357105,0.000498,120]
[321492620,1712239886522,-151.0,0.000498,120]
[321492621,1712239886532,-200.701774,0.000498,120]
[321492622,1712239886541,-200.701774,0.000498,120]
[321492623,1712239886550,-195.124799,0.000498,120]
[321492624,1712239886560,-364.380167,0.000498,120]
[321492625,1712239886569,-151.0,0.000498,120]
[321492626,1712239886578,-151.0,0.000498,120]
[321492627,1712239886588,-364.380167,0.000498,120]
[321492628,1712239886597,-266.978547,0.000498,120]
[321492629,1712239886607,-266.978547,0.000498,120]
[321492630,1712239886616,-162.974525,0.000498,120]
[321492631,1712239886625,-162.974525,0.000498,120]
[321492632,1712239886635,-512.864642,0.000498,120]
[321492633,1712239886644,-151.0,0.000498,120]
[321492634,1712239886653,-512.864642,0.000498,120]
[321492635,1712239886663,-151.0,0.000498,120]
[321492636,1712239886671,-151.0,0.000498,120]
[321492637,1712239886682,-151.0,0.000498,120]
[321492638,1712239886693,-151.0,0.000498,120]
[321492639,1712239886703,-151.0,0.000498,120]
[321492640,1712239886712,-292.667321,0.000498,120]
[321492641,1712239886722,-151.0,0.000498,7]
[321492642,1712239886732,-292.667321,0.000498,120]
[321492643,1712239886741,-260.473878,0.000498,7]
[321492644,1712239886750,-151.0,0.000498,120]
[321492645,1712239886760,-192.956329,0.000498,120]
[321492646,1712239886773,-192.956329,0.000498,120]
[321492647,1712239886782,-259.233093,0.000498,7]
[321492648,1712239886792,-259.233093,0.000498,7]
[321492649,1712239886801,-152.868601,0.000498,120]
[321492650,1712239886811,-151.0,0.000498,120]
[321492651,1712239886820,-151.0,0.000498,120]
[321492652,1712239886830,-345.766261,0.000498,120]
[321492653,1712239886839,-287.421932,0.000498,14]
[321492654,1712239886849,-287.421932,0.000498,14]
[321492655,1712239886858,-345.766261,0.000498,120]
[321492656,1712239886867,-151.0,0.000498,120]
[321492657,1712239886877,-348.279012,0.000498,120]
[321492658,1712239886886,-151.0,0.000498,120]
[321492659,1712239886896,-348.279012,0.000498,120]
[321492660,1712239886906,-198.86149,0.000498,120]
[321492661,1712239886915,-198.86149,0.000498,120]
[321492662,1712239886925,-151.0,0.000498,120]
[321492663,1712239886934,-384.141422,0.000498,120]
[321492664,1712239886944,-151.0,0.000498,60]
[321492665,1712239886953,-151.0,0.000498,120]
[321492666,1712239886963,-151.0,0.000498,120]
[321492667,1712239886973,-156.151676,0.000498,120]
[321492668,1712239886982,-151.0,0.000498,120]
[321492669,1712239886991,-179.888898,0.000498,120]
[321492670,1712239887001,-151.0,0.000498,120]
[321492671,1712239887010,-151.0,0.000498,120]
[321492672,1712239887021,-151.0,0.000498,120]
[321492673,1712239887030,-151.0,0.000498,120]
[321492674,1712239887039,-151.0,0.000498,120]
[321492675,1712239887048,-151.0,0.000498,120]
[321492676,1712239887058,-151.0,0.000498,120]
[321492677,1712239887068,-151.0,0.000498,120]
[321492678,1712239887079,-151.0,0.000498,120]
[321492679,1712239887089,-586.981877,0.000498,120]
[321492680,1712239887099,-667.499652,0.000498,120]
[321492681,1712239887108,-667.499652,0.000498,120]
[321492682,1712239887118,-151.0,0.000498,120]
[321492683,1712239887128,-586.981877,0.000498,120]
[321492684,1712239887138,-230.324354,0.000498,120]
[321492685,1712239887148,-151.0,0.000498,7]
[321492686,1712239887157,-230.324354,0.000498,120]
[321492687,1712239887167,-296.183246,0.000498,120]
[321492688,1712239887177,-856.20316,0.000498,30]
[321492689,1712239887187,-296.183246,0.000498,120]
[321492690,1712239887198,-237.001021,0.000498,30]
[321492691,1712239887208,-856.20316,0.000498,30]
[321492692,1712239887218,-237.001021,0.000498,30]
[321492693,1712239887230,-152.945041,0.000498,120]
[321492694,1712239887239,-151.901025,0.000498,120]
[321492695,1712239887248,-151.0,0.000498,120]
[321492696,1712239887258,-201.325026,0.000498,120]
[321492697,1712239887267,-201.325026,0.000498,120]
[321492698,1712239887280,-151.0,0.000498,120]
[321492699,1712239887291,-171.185208,0.000498,120]
[321492700,1712239887301,-758.089528,0.000498,30]
[321492701,1712239887312,-758.089528,0.000498,30]
[321492702,1712239887322,-151.0,0.000498,120]
[321492703,1712239887332,-461.879019,0.000498,120]
[321492704,1712239887343,-151.0,0.000498,120]
[321492705,1712239887354,-461.879019,0.000498,120]
[321492706,1712239887363,-153.463366,0.000498,120]
[321492707,1712239887373,-151.0,0.000498,120]
[321492708,1712239887383,-154.026777,0.000498,120]
[321492709,1712239887392,-151.0,0.000498,120]
[321492710,1712239887403,-151.0,0.000498,120]
[321492711,1712239887414,-152.26944911,0.00049827,30]
[321492712,1712239887424,-8490.2233042,0.00049829,2]
[321492713,1712239887434,-1335.4428195,0.00049829,2]
[321492714,1712239887446,-193.26894352,0.00049831,30]
[321492715,1712239887456,-212.0,0.0004984,30]
[321492716,1712239887466,-500.0,0.00049852,90]
[321492717,1712239887476,-880.18,0.00049863,120]
[321492718,1712239887488,-500.0,0.00049863,120]
[321492719,1712239887499,-500.0,0.00049863,120]
[321492720,1712239887510,-500.0,0.00049863,120]
[321492721,1712239887522,-500.0,0.00049863,120]
[321492722,1712239887534,-514.21668029,0.00049863,120]
[321492723,1712239887545,-511.95274914,0.00049863,120]
[321492724,1712239887557,-500.0,0.00049863,120]
[321492725,1712239887568,-500.0,0.00049863,120]
[321492726,1712239887578,-500.0,0.00049863,120]
[321492727,1712239887587,-500.0,0.00049863,120]
[321492728,1712239887597,-500.0,0.00049863,120]
[321492729,1712239887607,-495.85515421,0.00049863,120]
[321492730,1712239887617,-501.51245035,0.00049863,120]
[321492731,1712239887627,-516.99731984,0.00049863,120]
[321492732,1712239887637,-500.0,0.00049863,120]
[321492733,1712239887647,-473.22201929,0.00049863,120]
[321492734,1712239887658,-325.68803425,0.00049863,120]
[321492735,1712239887670,-500.0,0.00049863,120]
[321492736,1712239887680,-548.65183817,0.00049863,120]
[321492737,1712239887693,-500.0,0.00049863,120]
[321492738,1712239887703,-500.0,0.00049863,120]
[321492739,1712239887714,-500.0,0.00049863,120]
[321492740,1712239887724,-553.32,0.00049863,120]
[321492741,1712239887733,-786.2,0.00049863,120]
[321492742,1712239887743,-500.0,0.00049863,120]
[321492743,1712239887754,-200.0,0.00049863,10]
[321492744,1712239887765,-791.27,0.00049863,120]
[321492745,1712239887776,-500.0,0.00049863,2]
[321492746,1712239887786,-500.0,0.00049863,120]
[321492747,1712239887796,-500.0,0.00049863,120]
[321492748,1712239887806,-500.0,0.00049863,120]
[321492749,1712239887816,-500.0,0.00049863,120]
[321492750,1712239887825,-619.73,0.00049863,120]
[321492751,1712239887835,-500.0,0.00049863,120]
[321492752,1712239887845,-552.29748191,0.00049863,120]
[321492753,1712239887855,-1016.66,0.00049863,120]
[321492754,1712239887865,-500.0,0.00049863,120]
[321492755,1712239887875,-625.71,0.00049863,120]
[321492756,1712239887884,-884.44,0.00049863,120]
[321492757,1712239887893,-848.11,0.00049863,120]
[321492758,1712239887903,-500.0,0.00049863,120]
[321492759,1712239887913,-500.0,0.00049863,120]
[321492760,1712239887924,-659.76,0.00049863,120]
[321492761,1712239887934,-500.0,0.00049863,120]
[321492762,1712239887944,-500.0,0.00049863,120]
[321492763,1712239887955,-500.0,0.00049863,120]
[321492764,1712239887966,-500.0,0.00049863,120]
[321492765,1712239887976,-461.75715356,0.00049863,120]
[321492766,1712239887986,-500.0,0.00049863,120]
[321492767,1712239887996,-500.0,0.00049863,2]
[321492768,1712239888006,-500.0,0.00049863,120]
[321492769,1712239888015,-500.0,0.00049863,120]
[321492770,1712239888028,-500.0,0.00049863,120]
[321492771,1712239888038,-519.79777339,0.00049863,120]
[321492772,1712239888048,-500.0,0.00049863,120]
[321492773,1712239888058,-500.0,0.00049863,120]
[321492774,1712239888068,-500.0,0.00049863,120]
[321492775,1712239888077,-500.0,0.00049863,120]
[321492776,1712239888088,-500.0,0.00049863,120]
[321492777,1712239888098,-534.61413469,0.00049863,120]
[321492778,1712239888108,-500.0,0.00049863,120]
[321492779,1712239888118,-521.97753702,0.00049863,120]
[321492780,1712239888128,-500.0,0.00049863,120]
[321492781,1712239888138,-717.27,0.00049863,120]
[321492782,1712239888148,-500.0,0.00049863,120]
[321492783,1712239888157,-500.0,0.00049863,120]
[321492784,1712239888167,-500.0,0.00049863,120]
[321492785,1712239888176,-500.0,0.00049863,120]
[321492786,1712239888185,-521.27108368,0.00049863,120]
[321492787,1712239888195,-716.31,0.00049863,120]
[321492788,1712239888207,-553.07,0.00049863,120]
[321492789,1712239888218,-588.01,0.00049863,120]
[321492790,1712239888227,-500.0,0.00049863,120]
[321492791,1712239888236,-500.0,0.00049863,120]
[321492792,1712239888246,-500.0,0.00049863,120]
[321492793,1712239888255,-500.0,0.00049863,120]
[321492794,1712239888266,-500.0,0.00049863,120]
[321492795,1712239888276,-500.0,0.00049863,120]
[321492796,1712239888285,-917.77,0.00049863,120]
[321492797,1712239888294,-500.0,0.00049863,120]
[321492798,1712239888303,-479.41755445,0.00049863,120]
[321492799,1712239888313,-500.0,0.00049863,120]
[321492800,1712239888324,-500.0,0.00049863,120]
[321492801,1712239888335,-500.0,0.00049863,120]
[321492802,1712239888345,-581.55,0.00049863,120]
[321492803,1712239888354,-500.0,0.00049863,120]
[321492804,1712239888363,-631.14,0.00049863,120]
[321492805,1712239888372,-500.0,0.00049863,120]
[321492806,1712239888381,-500.0,0.00049863,120]
[321492807,1712239888390,-500.0,0.00049863,120]
[321492808,1712239888399,-500.0,0.00049863,120]
[321492809,1712239888408,-500.0,0.00049863,120]
[321492810,1712239888417,-500.0,0.00049863,120]
[321492811,1712239888427,-500.0,0.00049863,120]
[321492812,1712239888436,-514.25510863,0.00049863,120]
[321492813,1712239888445,-736.38,0.00049863,120]
[321492814,1712239888454,-500.0,0.00049863,120]
[321492815,1712239888463,-498.35414696,0.00049863,120]
[321492816,1712239888472,-302.873274,0.00049863,120]
[321492817,1712239888481,-500.0,0.00049863,120]
[321492818,1712239888490,-859.9,0.00049863,120]
[321492819,1712239888499,-1028.63,0.00049863,120]
[321492820,1712239888509,-500.0,0.00049863,120]
[321492821,1712239888518,-581.15,0.00049863,120]
[321492822,1712239888528,-500.0,0.00049863,120]
[321492823,1712239888538,-500.0,0.00049863,120]
[321492824,1712239888547,-627.02070501,0.00049863,120]
[321492825,1712239888556,-515.37840846,0.00049863,120]
[321492826,1712239888565,-500.0,0.00049863,120]
[321492827,1712239888574,-500.0,0.00049863,120]
[321492828,1712239888584,-500.0,0.00049863,120]
[321492829,1712239888593,-500.0,0.00049863,120]
[321492830,1712239888602,-890.74,0.00049863,120]
[321492831,1712239888611,-768.51,0.00049863,120]
[321492832,1712239888620,-500.0,0.00049863,120]
[321492833,1712239888629,-500.0,0.00049863,120]
[321492834,1712239888638,-500.0,0.00049863,120]
[321492835,1712239888648,-522.1445255,0.00049863,120]
[321492836,1712239888657,-500.0,0.00049863,120]
[321492837,1712239888671,-500.0,0.00049863,120]
[321492838,1712239888680,-500.0,0.00049863,120]
[321492839,1712239888689,-869.16,0.00049863,120]
[321492840,1712239888699,-500.0,0.00049863,120]
[321492841,1712239888710,-1705.61,0.00049863,2]
[321492842,1712239888719,-500.0,0.00049863,120]
[321492843,1712239888729,-500.0,0.00049863,120]
[321492844,1712239888738,-500.0,0.00049863,120]
[321492845,1712239888748,-543.39601668,0.00049863,120]
[321492846,1712239888757,-500.0,0.00049863,120]
[321492847,1712239888767,-500.0,0.00049863,120]
[321492848,1712239888777,-823.61,0.00049863,120]
[321492849,1712239888787,-500.0,0.00049863,120]
[321492850,1712239888797,-669.56,0.00049863,120]
[321492851,1712239888806,-500.0,0.00049863,120]
[321492852,1712239888816,-600.0,0.00049863,2]
[321492853,1712239888825,-1003.7,0.00049863,120]
[321492854,1712239888834,-243.87753501,0.00049863,120]
[321492855,1712239888844,-500.0,0.00049863,120]
[321492856,1712239888854,-766.32,0.00049863,120]
[321492857,1712239888863,-698.69,0.00049863,120]
[321492858,1712239888872,-500.0,0.00049863,120]
[321492859,1712239888881,-500.0,0.00049863,120]
[321492860,1712239888891,-824.08,0.00049863,120]
[321492861,1712239888900,-500.0,0.00049863,120]
[321492862,1712239888910,-158.03622901,0.00049863,120]
[321492863,1712239888919,-500.0,0.00049863,120]
[321492864,1712239888928,-599.72,0.00049863,120]
[321492865,1712239888938,-500.0,0.00049863,120]
[321492866,1712239888947,-1438.14,0.00049863,120]
[321492867,1712239888957,-506.98,0.00049863,120]
[321492868,1712239888967,-500.0,0.00049863,120]
[321492869,1712239888976,-739.27,0.00049863,120]
[321492870,1712239888986,-500.0,0.00049863,120]
[321492871,1712239888995,-500.0,0.00049863,120]
[321492872,1712239889004,-551.64,0.00049863,120]
[321492873,1712239889015,-500.0,0.00049863,120]
[321492874,1712239889027,-600.99,0.00049863,120]
[321492875,1712239889036,-500.0,0.00049863,120]
[321492876,1712239889045,-500.0,0.00049863,120]
[321492877,1712239889055,-3487.43,0.00049863,120]
[321492878,1712239889064,-535.0,0.00049863,120]
[321492879,1712239889074,-937.6,0.00049863,120]
[321492880,1712239889084,-1133.6,0.00049863,120]
[321492881,1712239889093,-500.0,0.00049863,120]
[321492882,1712239889103,-1429.94,0.00049863,120]
[321492883,1712239889112,-500.0,0.00049863,120]
[321492884,1712239889122,-817.3,0.00049863,120]
[321492885,1712239889131,-807.04,0.00049863,120]
[321492886,1712239889141,-500.0,0.00049863,120]
[321492887,1712239889151,-500.0,0.00049863,120]
[321492888,1712239889160,-509.61,0.00049863,120]
[321492889,1712239889169,-500.0,0.00049863,120]
[321492890,1712239889179,-500.0,0.00049863,120]
[321492891,1712239889188,-500.0,0.00049863,120]
[321492892,1712239889197,-500.0,0.00049863,120]
[321492893,1712239889206,-500.0,0.00049863,120]
[321492894,1712239889216,-500.0,0.00049863,2]
[321492895,1712239889226,-500.0,0.00049863,120]
[321492896,1712239889235,-500.0,0.00049863,120]
[321492897,1712239889245,-720.56,0.00049863,120]
[321492898,1712239889254,-557.10733419,0.00049863,120]
[321492899,1712239889264,-500.0,0.00049863,120]
[321492900,1712239889275,-1150.35,0.00049863,120]
[321492901,1712239889283,-500.0,0.00049863,120]
[321492902,1712239889293,-500.0,0.00049863,120]
[321492903,1712239889302,-455.0108462,0.00049863,120]
[321492904,1712239889311,-502.98190927,0.00049863,120]
[321492905,1712239889320,-500.0,0.00049863,120]
[321492906,1712239889329,-500.0,0.00049863,120]
[321492907,1712239889338,-500.0,0.00049863,120]
[321492908,1712239889347,-500.0,0.00049863,120]
[321492909,1712239889356,-368.4297152,0.00049863,120]
[321492910,1712239889365,-2047.02,0.00049863,120]
[321492911,1712239889374,-500.0,0.00049863,120]
[321492912,1712239889383,-528.41657245,0.00049863,120]
[321492913,1712239889392,-618.62,0.00049863,120]
[321492914,1712239889401,-1658.5,0.00049863,30]
[321492915,1712239889411,-500.0,0.00049863,120]
[321492916,1712239889420,-1165.16,0.00049863,120]
[321492917,1712239889429,-500.0,0.00049863,120]
[321492918,1712239889438,-500.0,0.00049863,120]
[321492919,1712239889448,-587.57,0.00049863,120]
[321492920,1712239889457,-531.11,0.00049863,120]
[321492921,1712239889466,-753.57,0.00049863,120]
[321492922,1712239889476,-500.0,0.00049863,120]
[321492923,1712239889484,-750.04,0.00049863,120]
[321492924,1712239889494,-500.0,0.00049863,120]
[321492925,1712239889503,-1165.86,0.00049863,120]
[321492926,1712239889512,-500.0,0.00049863,120]
[321492927,1712239889521,-1129.12,0.00049863,120]
[321492928,1712239889532,-500.0,0.00049863,120]
[321492929,1712239889542,-500.0,0.00049863,120]
[321492930,1712239889551,-500.0,0.00049863,120]
[321492931,1712239889561,-500.0,0.00049863,120]
[321492932,1712239889570,-1143.63,0.00049863,120]
[321492933,1712239889579,-500.0,0.00049863,120]
[321492934,1712239889589,-524.48012555,0.00049863,120]
[321492935,1712239889599,-1099.75,0.00049863,120]
[321492936,1712239889608,-1263.93,0.00049863,120]
[321492937,1712239889618,-500.0,0.00049863,120]
[321492938,1712239889627,-562.06,0.00049863,120]
[321492939,1712239889637,-489.71300776,0.00049863,120]
[321492940,1712239889646,-500.0,0.00049863,120]
[321492941,1712239889655,-500.0,0.00049863,120]
[321492942,1712239889668,-500.0,0.00049863,120]
[321492943,1712239889680,-500.0,0.00049863,120]
[321492944,1712239889691,-519.66,0.00049863,120]
[321492945,1712239889701,-1000.0,0.00049863,30]
[321492946,1712239889710,-582.2,0.00049863,120]
[321492947,1712239889720,-1015.71,0.00049863,120]
[321492948,1712239889729,-500.0,0.00049863,120]
[321492949,1712239889738,-500.0,0.00049863,120]
[321492950,1712239889748,-500.0,0.00049863,120]
[321492951,1712239889758,-500.0,0.00049863,2]
[321492952,1712239889768,-1290.41,0.00049863,120]
[321492953,1712239889778,-500.0,0.00049863,120]
[321492954,1712239889787,-500.0,0.00049863,120]
[321492955,1712239889797,-500.0,0.00049863,120]
[321492956,1712239889807,-1244.82,0.00049863,120]
[321492957,1712239889816,-547.0892318,0.00049863,120]
[321492958,1712239889826,-1810.36,0.00049863,120]
[321492959,1712239889836,-500.0,0.00049863,120]
[321492960,1712239889845,-500.0,0.00049863,120]
[321492961,1712239889856,-923.23,0.00049863,120]
[321492962,1712239889865,-500.0,0.00049863,120]
[321492963,1712239889874,-540.11164099,0.00049863,120]
[321492964,1712239890092,-500.0,0.00049863,120]
[321492965,1712239890102,-1446.83,0.00049863,120]
[321492966,1712239890112,-1276.6,0.00049863,120]
[321492967,1712239890121,-534.04367109,0.00049863,120]
[321492968,1712239890131,-3457.7,0.00049863,120]
[321492969,1712239890140,-718.91,0.00049863,120]
[321492970,1712239890149,-537.63,0.00049863,120]
[321492971,1712239890160,-1065.5,0.00049863,120]
[321492972,1712239890170,-500.0,0.00049863,120]
[321492973,1712239890180,-500.0,0.00049863,120]
[321492974,1712239890190,-500.0,0.00049863,120]
[321492975,1712239890199,-500.0,0.00049863,120]
[321492976,1712239890208,-1333.71,0.00049863,120]
[321492977,1712239890217,-500.0,0.00049863,120]
[321492978,1712239890227,-500.0,0.00049863,120]
[321492979,1712239890236,-931.69,0.00049863,120]
[321492980,1712239890246,-500.0,0.00049863,120]
[321492981,1712239890255,-500.0,0.00049863,120]
[321492982,1712239890264,-516.52433662,0.00049863,120]
[321492983,1712239890274,-500.0,0.00049863,120]
[321492984,1712239890284,-1104.92,0.00049863,120]